Workbook

Sheet RVData
B2: Barton Consultancy
A4: Retirement village data sheet
A5: Client name | G5: Instructions
A6: Operator name | G6: 1 | H6: Input valuation date.
A7: Valuation date | D7: =EOMONTH(NOW(),-1) -> 2018-10-31 | G7: 2 | H7: Count records to be included in this spreadsheet.
G8: 3 | H8: Make room for required number of records by clicking button above.
G9: 4 | H9: Read comments describing input data.
G10: 5 | H10: Populate input data (magenta fields in Residents' data)
G11: 6 | H11: Check totals, maximum and minimum for reasonableness.
G12: 7 | H12: Correct if necessary, guided by minimum and maximum rows .
G13: 8 | H13: Check and print Data summary
G14: 9 | H14: Send to Barton@Actuary.com.au
A18: Data summary
C21: Occupied | D21: Vacant | E21: Terminated | F21: All | J21: Year ended | K21: Termination rate
A22: Females | C22: =$S$77 -> 11 | E22: =$S$79 -> 11 | F22: =C22+E22 -> 22 | J22: =EOMONTH(J23,-12) -> 2014-10-31 | K22: =INDEX(TerminationRate,ROW(J22)-ROW($K$21)) -> 0
A23: Males | C23: =$T$77 -> 4 | E23: =$T$79 -> 4 | F23: =C23+E23 -> 8 | J23: =EOMONTH(J24,-12) -> 2015-10-31 | K23: =INDEX(TerminationRate,ROW(J23)-ROW($K$21)) -> 0
A24: Occupancies | C24: =R77 -> 14 | D24: =R78 -> 2 | E24: =R79 -> 24 | F24: =COUNT(B37:B76) -> 40 | G24: =IF(SUM(C24:E24)<>F24,"Error","ok") -> ok | H24: =IF(SUM(V37:W76)>0,"Exit modes missing","Exit modes ok") -> Exit modes ok | J24: =EOMONTH(J25,-12) -> 2016-10-31 | K24: =INDEX(TerminationRate,ROW(J24)-ROW($K$21)) -> 0
A25: Purchase | C25: =L77 -> 4664000 | D25: =L78 -> 425000 | E25: =L79 -> 4038750 | F25: =L80 -> 9127750 | G25: =IF(SUM(C25:E25)<>F25,"Error","ok") -> ok | J25: =EOMONTH(J26,-12) -> 2017-10-31 | K25: =INDEX(TerminationRate,ROW(J25)-ROW($K$21)) -> 0
A26: Average purchase | C26: =IF(C$24<>0,C25/C$24) -> 333142.8571 | D26: =IF(D$24<>0,D25/D$24) -> 212500 | E26: =IF(E$24<>0,E25/E$24) -> 168281.25 | F26: =IF(F$24<>0,F25/F$24) -> 228193.75 | J26: =ValnDate -> 2018-10-31 | K26: =INDEX(TerminationRate,ROW(J26)-ROW($K$21)) -> 0
A27: Reallocation | C27: =M77 -> 6305000 | D27: =M78 -> 650000 | E27: =M79 -> 6572750 | F27: =M80 -> 13527750 | G27: =IF(SUM(C27:E27)<>F27,"Error","ok") -> ok | J27: All | K27: =GlobalTermination *1 -> 0
A28: Average reallocation | C28: =IF(C$24<>0,C27/C$24) -> 450357.1429 | D28: =IF(D$24<>0,D27/D$24) -> 325000 | E28: =IF(E$24<>0,E27/E$24) -> 273864.5833 | F28: =IF(F$24<>0,F27/F$24) -> 338193.75 | G28: =IF(COUNT(IF(Q37:Q76<>"",1,""))>0,COUNT(IF(Q37:Q76<>"",1,""))&" error(s). See column "&CHAR(64+COLUMN($Q$37)),"ok") -> ok | J28: Expectancy (a) | K28: =1/K27+0.5 -> 
J30: (a) | K30: Assumes continuation of current termination rate
A32: Residents' data | Y32: =IF(D32<FinDate,IF(E32<FinDate,YEARFRAC(D32,E32),""),"") -> 0 | AA32: =IF(H32<FinDate,IF(I32<FinDate,YEARFRAC(H32,I32),""),"") -> 0 | AC32: =IF(D32<FinDate,D32,IF(E32<=ValnDate,E32-365.25*IF(I32<=ValnDate,Z72,Y72),"")) -> 00:00:00 | AD32: =IF(H32<FinDate,H32,IF(I32<=ValnDate,I32-365.25*IF(M32<=ValnDate,AD72,AC72),"")) -> 00:00:00
D35: Female | H35: Male | R35: Occupied | S35: Female | T35: Spouse | V35: Female exit error | W35: Male exit error | Y35: Entry ages | AC35: Imputed birthdate | AE35: Occupancy dates | AG35: Beginners year end | AL35: Enders year end | AQ35: Exits year end
A36: Record ID | B36: Occupancy | C36: Name | D36: Female Birth | E36: Female entry | F36: Female Exit | G36: Female exit mode | H36: Male Birth | I36: Male entry | J36: Male Exit | K36: Male exit mode | L36: Purchase | M36: Reallocation | N36: Care level | O36: Site code | P36: Contract code | Y36: Single female | Z36: Coupled female | AA36: Single male | AB36: Coupled male | AC36: Female | AD36: Male | AE36: First | AF36: Last | AG36: =EOMONTH(ValnDate,-48) -> 2014-10-31 | AH36: =EOMONTH(AG36,12) -> 2015-10-31 | AI36: =EOMONTH(AH36,12) -> 2016-10-31 | AJ36: =EOMONTH(AI36,12) -> 2017-10-31 | AK36: =EOMONTH(AJ36,12) -> 2018-10-31 | AL36: =EOMONTH(ValnDate,-48) -> 2014-10-31 | AM36: =EOMONTH(AL36,12) -> 2015-10-31 | AN36: =EOMONTH(AM36,12) -> 2016-10-31 | AO36: =EOMONTH(AN36,12) -> 2017-10-31 | AP36: =EOMONTH(AO36,12) -> 2018-10-31 | AQ36: =EOMONTH(ValnDate,-48) -> 2014-10-31 | AR36: =EOMONTH(AQ36,12) -> 2015-10-31 | AS36: =EOMONTH(AR36,12) -> 2016-10-31 | AT36: =EOMONTH(AS36,12) -> 2017-10-31 | AU36: =EOMONTH(AT36,12) -> 2018-10-31
A37: 001 | B37: 1 | C37: Occupant(s)1 | D37: 1920-03-24 | E37: 1990-01-20 | F37: 2013-08-18 | G37: 3 | H37: 1917-01-26 | I37: 1990-01-20 | J37: 2003-08-21 | K37: 1 | L37: 146000 | M37: 470000 | N37: 1 | O37: 1 | P37: 1 | Q37: =IF(IF(AND(F37>0,F37<E37),1,0) + IF(AND(J37>0,J37<I37),1,0) >0, "Exit < entry","") ->  | R37: =IF(OR(S37>0,T37>0),1,IF(OR(ISBLANK(E37),E37>$D$7),-1,0)) -> 0 | S37: =IF(AND(ISNUMBER(E37),E37<=$D$7),IF((AND(ISNUMBER(F37), F37<=$D$7)),0,1),0) -> 0 | T37: =IF(AND(ISNUMBER(I37),I37<=$D$7),IF((AND(ISNUMBER(J37), J37<=$D$7)),0,1),0) -> 0 | V37: =IF(AND(ISNUMBER(F37),F37<$D$7),IF(G37>0,0,1),0) -> 0 | W37: =IF(AND(ISNUMBER(J37),J37<$D$7),IF(K37>0,0,1),0) -> 0 | Y37: =IF(I37<FinDate,"",IF(D37<FinDate,IF(E37<FinDate,YEARFRAC(D37,E37),""),"")) ->  | Z37: =IF(I37 = FinDate,"",IF(D37<FinDate,IF(E37<FinDate,YEARFRAC(D37,E37),""),"")) -> 69.82222222 | AA37: =IF(E37 < FinDate,"",IF(H37<FinDate,IF(I37<FinDate,YEARFRAC(H37,I37),""),"")) ->  | AB37: =IF(E37=FinDate,"",IF(H37<FinDate,IF(I37<FinDate,YEARFRAC(H37,I37),""),"")) -> 72.98333333 | AC37: =IF(D37<FinDate,D37,IF(E37<=ValnDate,E37-365.25*IF(I37<=ValnDate,Z77,Y77),"")) -> 1920-03-24 | AD37: =IF(H37<FinDate,H37,IF(I37<=ValnDate,I37-365.25*IF(E37<=ValnDate,AD77,AC77),"")) -> 1917-01-26 | AE37: =MIN(E37,I37) -> 1990-01-20 | AF37: =IF(R37=-1,"",MAX(IF(E37<FinDate,F37,0),IF(I37<FinDate,J37,0))) -> 2013-08-18 | AG37: =IF(AND($AE37<EOMONTH(AG$36,-12),$AF37>EOMONTH(AG$36,-12)),1,0) -> 0 | AH37: 0 | AI37: 0 | AJ37: 0 | AK37: 0 | AL37: =IF(AND($AE37<AL$36,$AF37>AL$36),1,0) -> 0 | AM37: 0 | AN37: 0 | AO37: 0 | AP37: 0 | AQ37: =IF(AND($AF37>EOMONTH(AQ$36,-12),$AF37<=AQ$36),1,0) -> 0 | AR37: 0 | AS37: 0 | AT37: 0 | AU37: 0
A38: 001 | B38: 2 | C38: Occupant(s)2 | D38: 1942-01-04 | E38: 2014-05-17 | F38: 2099-12-31 | G38: 0 | H38: 2099-12-31 | I38: 2099-12-31 | J38: 2099-12-31 | L38: 480000 | M38: 480000 | N38: 1 | O38: 1 | P38: 1 | R38: 1 | S38: 1 | T38: 0 | V38: 0 | W38: 0 | Y38: 72.36944444 | AC38: =IF(D38<FinDate,D38,IF(E38<=ValnDate,E38-365.25*IF(I38<=ValnDate,Z54,Y54),"")) -> 1942-01-04 | AD38: =IF(H38<FinDate,H38,IF(I38<=ValnDate,I38-365.25*IF(E38<=ValnDate,AD54,AC54),"")) ->  | AE38: =MIN(E38,I38) -> 2014-05-17 | AF38: 2099-12-31 | AG38: 0 | AH38: 1 | AI38: 1 | AJ38: 1 | AK38: 1 | AL38: 1 | AM38: 1 | AN38: 1 | AO38: 1 | AP38: 1 | AQ38: 0 | AR38: 0 | AS38: 0 | AT38: 0 | AU38: 0
A39: 002 | B39: 1 | C39: Occupant(s)3 | D39: 1918-07-03 | E39: 1992-01-02 | F39: 2099-12-31 | G39: 0 | H39: 2099-12-31 | I39: 2099-12-31 | J39: 2099-12-31 | K39: 0 | L39: 143000 | M39: 490000 | N39: 1 | O39: 1 | P39: 1 | R39: 1 | S39: 1 | T39: 0 | V39: 0 | W39: 0 | Y39: 73.49722222 | AC39: 1918-07-03 | AE39: 1992-01-02 | AF39: 2099-12-31 | AG39: 1 | AH39: 1 | AI39: 1 | AJ39: 1 | AK39: 1 | AL39: 1 | AM39: 1 | AN39: 1 | AO39: 1 | AP39: 1 | AQ39: 0 | AR39: 0 | AS39: 0 | AT39: 0 | AU39: 0
A40: 003 | B40: 1 | C40: Occupant(s)4 | D40: 2099-12-31 | E40: 2099-12-31 | F40: 2099-12-31 | G40: 0 | H40: 1924-10-16 | I40: 1990-09-14 | J40: 2007-04-06 | K40: 1 | L40: 147000 | M40: 350000 | N40: 1 | O40: 1 | P40: 1 | R40: -1 | S40: 0 | T40: 0 | V40: 0 | W40: 0 | AA40: 65.91111111 | AD40: 1924-10-16 | AE40: 1990-09-14 | AG40: 1 | AH40: 1 | AI40: 1 | AJ40: 1 | AK40: 1 | AL40: 1 | AM40: 1 | AN40: 1 | AO40: 1 | AP40: 1 | AQ40: 0 | AR40: 0 | AS40: 0 | AT40: 0 | AU40: 0
A41: 003 | B41: 2 | C41: Occupant(s)5 | D41: 1932-05-18 | E41: 2007-08-19 | F41: 2099-12-31 | G41: 0 | H41: 2099-12-31 | I41: 2099-12-31 | J41: 2099-12-31 | K41: 0 | L41: 350000 | M41: 470000 | N41: 1 | O41: 1 | P41: 1 | R41: 1 | S41: 1 | T41: 0 | V41: 0 | W41: 0 | Y41: 75.25277778 | AC41: 1932-05-18 | AE41: 2007-08-19 | AF41: 2099-12-31 | AG41: 1 | AH41: 1 | AI41: 1 | AJ41: 1 | AK41: 1 | AL41: 1 | AM41: 1 | AN41: 1 | AO41: 1 | AP41: 1 | AQ41: 0 | AR41: 0 | AS41: 0 | AT41: 0 | AU41: 0
A42: 004 | B42: 1 | C42: Occupant(s)6 | D42: 1925-08-06 | E42: 1990-03-08 | F42: 2010-08-14 | G42: 2 | H42: 2099-12-31 | I42: 2099-12-31 | J42: 2099-12-31 | K42: 0 | L42: 142000 | M42: 445000 | N42: 1 | O42: 1 | P42: 1 | R42: 0 | S42: 0 | T42: 0 | V42: 0 | W42: 0 | Y42: 64.58888889 | AC42: 1925-08-06 | AE42: 1990-03-08 | AF42: 2010-08-14 | AG42: 0 | AH42: 0 | AI42: 0 | AJ42: 0 | AK42: 0 | AL42: 0 | AM42: 0 | AN42: 0 | AO42: 0 | AP42: 0 | AQ42: 0 | AR42: 0 | AS42: 0 | AT42: 0 | AU42: 0
A43: 004 | B43: 2 | C43: Occupant(s)7 | D43: 1926-04-14 | E43: 2012-04-01 | F43: 2099-12-31 | G43: 0 | H43: 2099-12-31 | I43: 2099-12-31 | J43: 2099-12-31 | K43: 0 | L43: 445000 | M43: 470000 | N43: 1 | O43: 1 | P43: 1 | R43: 1 | S43: 1 | T43: 0 | V43: 0 | W43: 0 | Y43: 85.96388889 | AC43: 1926-04-14 | AE43: 2012-04-01 | AF43: 2099-12-31 | AG43: 1 | AH43: 1 | AI43: 1 | AJ43: 1 | AK43: 1 | AL43: 1 | AM43: 1 | AN43: 1 | AO43: 1 | AP43: 1 | AQ43: 0 | AR43: 0 | AS43: 0 | AT43: 0 | AU43: 0
A44: 005 | B44: 1 | C44: Occupant(s)8 | D44: 1927-04-30 | E44: 1990-02-22 | F44: 2011-07-07 | G44: 3 | H44: 1922-10-01 | I44: 1990-02-22 | J44: 2012-02-21 | K44: 2 | L44: 155000 | M44: 460000 | N44: 1 | O44: 1 | P44: 1 | R44: 0 | S44: 0 | T44: 0 | V44: 0 | W44: 0 | Z44: 62.81111111 | AB44: 67.39166667 | AC44: 1927-04-30 | AD44: 1922-10-01 | AE44: 1990-02-22 | AF44: 2012-02-21 | AG44: 0 | AH44: 0 | AI44: 0 | AJ44: 0 | AK44: 0 | AL44: 0 | AM44: 0 | AN44: 0 | AO44: 0 | AP44: 0 | AQ44: 0 | AR44: 0 | AS44: 0 | AT44: 0 | AU44: 0
A45: 005 | B45: 2 | C45: Occupant(s)9 | D45: 2099-12-31 | E45: 2099-12-31 | F45: 2099-12-31 | G45: 0 | H45: 1935-09-16 | I45: 2012-03-11 | J45: 2099-12-31 | K45: 0 | L45: 460000 | M45: 490000 | N45: 1 | O45: 1 | P45: 1 | R45: 1 | S45: 0 | T45: 1 | V45: 0 | W45: 0 | AA45: 76.48611111 | AD45: 1935-09-16 | AE45: 2012-03-11 | AF45: 2099-12-31 | AG45: 1 | AH45: 1 | AI45: 1 | AJ45: 1 | AK45: 1 | AL45: 1 | AM45: 1 | AN45: 1 | AO45: 1 | AP45: 1 | AQ45: 0 | AR45: 0 | AS45: 0 | AT45: 0 | AU45: 0
A46: 006 | B46: 1 | C46: Occupant(s)10 | D46: 1920-10-14T09:00:00 | E46: 1991-03-10 | F46: 1993-04-15 | G46: 3 | H46: 2099-12-31 | I46: 2099-12-31 | J46: 2099-12-31 | K46: 0 | L46: 136000 | M46: 165750 | N46: 1 | O46: 1 | P46: 1 | R46: 0 | S46: 0 | T46: 0 | V46: 0 | W46: 0 | Y46: 70.40555556 | AC46: 1920-10-14T09:00:00 | AE46: 1991-03-10 | AF46: 1993-04-15 | AG46: 0 | AH46: 0 | AI46: 0 | AJ46: 0 | AK46: 0 | AL46: 0 | AM46: 0 | AN46: 0 | AO46: 0 | AP46: 0 | AQ46: 0 | AR46: 0 | AS46: 0 | AT46: 0 | AU46: 0
A47: 006 | B47: 2 | C47: Occupant(s)11 | D47: 1915-02-28 | E47: 1993-04-15 | F47: 2004-07-28 | G47: 1 | H47: 2099-12-31 | I47: 2099-12-31 | J47: 2099-12-31 | K47: 0 | L47: 165750 | M47: 290000 | N47: 1 | O47: 1 | P47: 1 | R47: 0 | S47: 0 | T47: 0 | V47: 0 | W47: 0 | Y47: 78.125 | AC47: 1915-02-28 | AE47: 1993-04-15 | AF47: 2004-07-28 | AG47: =IF(AND($AE47<EOMONTH(AG$36,-12),$AF47>EOMONTH(AG$36,-12)),1,0) -> 0 | AH47: 0 | AI47: 0 | AJ47: 0 | AK47: 0 | AL47: 0 | AM47: 0 | AN47: 0 | AO47: 0 | AP47: 0 | AQ47: =IF(AND($AF47>EOMONTH(AQ$36,-12),$AF47<=AQ$36),1,0) -> 0 | AR47: 0 | AS47: 0 | AT47: 0 | AU47: 0
A48: 006 | B48: 3 | C48: Occupant(s)12 | D48: 1933-11-25 | E48: 2004-10-15 | F48: 2012-01-29 | G48: 3 | H48: 2099-12-31 | I48: 2099-12-31 | J48: 2099-12-31 | K48: 0 | L48: 290000 | M48: 444000 | N48: 1 | O48: 1 | P48: 1 | R48: 0 | S48: 0 | T48: 0 | V48: 0 | W48: 0 | Y48: 70.88888889 | AC48: 1933-11-25 | AE48: 2004-10-15 | AF48: 2012-01-29 | AG48: 0 | AH48: 0 | AI48: 0 | AJ48: 0 | AK48: 0 | AL48: 0 | AM48: 0 | AN48: 0 | AO48: 0 | AP48: 0 | AQ48: 0 | AR48: 0 | AS48: 0 | AT48: 0 | AU48: 0
A49: 006 | B49: 4 | C49: Occupant(s)13 | D49: 1932-02-01 | E49: 2014-06-29 | F49: 2099-12-31 | G49: 0 | H49: 2099-12-31 | I49: 2099-12-31 | J49: 2099-12-31 | K49: 0 | L49: 444000 | M49: 490000 | N49: 1 | O49: 1 | P49: 1 | R49: 1 | S49: 1 | T49: 0 | V49: 0 | W49: 0 | Y49: 82.41111111 | AC49: 1932-02-01 | AE49: 2014-06-29 | AF49: 2099-12-31 | AG49: 0 | AH49: 1 | AI49: 1 | AJ49: 1 | AK49: 1 | AL49: 1 | AM49: 1 | AN49: 1 | AO49: 1 | AP49: 1 | AQ49: 0 | AR49: 0 | AS49: 0 | AT49: 0 | AU49: 0
A50: 007 | B50: 1 | C50: Occupant(s)14 | D50: 1930-01-13T21:00:00 | E50: 1989-10-21 | F50: 1992-07-15 | G50: 3 | H50: 2099-12-31 | I50: 2099-12-31 | J50: 2099-12-31 | K50: 0 | L50: 106000 | M50: 119000 | N50: 1 | O50: 1 | P50: 1 | R50: 0 | S50: 0 | T50: 0 | V50: 0 | W50: 0 | Y50: 59.77222222 | AC50: 1930-01-13T21:00:00 | AE50: 1989-10-21 | AF50: 1992-07-15 | AG50: 0 | AH50: 0 | AI50: 0 | AJ50: 0 | AK50: 0 | AL50: 0 | AM50: 0 | AN50: 0 | AO50: 0 | AP50: 0 | AQ50: 0 | AR50: 0 | AS50: 0 | AT50: 0 | AU50: 0
A51: 007 | B51: 2 | C51: Occupant(s)15 | D51: 1917-12-08 | E51: 1992-07-19 | F51: 2010-08-27 | G51: 3 | H51: 2099-12-31 | I51: 2099-12-31 | J51: 2099-12-31 | K51: 0 | L51: 119000 | M51: 330000 | N51: 1 | O51: 1 | P51: 1 | R51: 0 | S51: 0 | T51: 0 | V51: 0 | W51: 0 | Y51: 74.61388889 | AC51: 1917-12-08 | AE51: 1992-07-19 | AF51: 2010-08-27 | AG51: 0 | AH51: 0 | AI51: 0 | AJ51: 0 | AK51: 0 | AL51: 0 | AM51: 0 | AN51: 0 | AO51: 0 | AP51: 0 | AQ51: 0 | AR51: 0 | AS51: 0 | AT51: 0 | AU51: 0
A52: 007 | B52: 3 | C52: Occupant(s)16 | D52: 1944-09-24 | E52: 2014-02-13 | F52: 2099-12-31 | G52: 0 | H52: 2099-12-31 | I52: 2099-12-31 | J52: 2099-12-31 | K52: 0 | L52: 345000 | M52: 390000 | N52: 1 | O52: 1 | P52: 1 | R52: 1 | S52: 1 | T52: 0 | V52: 0 | W52: 0 | Y52: 69.38611111 | AC52: 1944-09-24 | AE52: 2014-02-13 | AF52: 2099-12-31 | AG52: 0 | AH52: 1 | AI52: 1 | AJ52: 1 | AK52: 1 | AL52: 1 | AM52: 1 | AN52: 1 | AO52: 1 | AP52: 1 | AQ52: 0 | AR52: 0 | AS52: 0 | AT52: 0 | AU52: 0
A53: 008 | B53: 1 | C53: Occupant(s)17 | D53: 1914-04-08 | E53: 1990-03-08 | F53: 2006-12-09 | G53: 3 | H53: 2099-12-31 | I53: 2099-12-31 | J53: 2099-12-31 | K53: 0 | L53: 139500 | M53: 345000 | N53: 1 | O53: 1 | P53: 1 | R53: 0 | S53: 0 | T53: 0 | V53: 0 | W53: 0 | Y53: 75.91666667 | AC53: 1914-04-08 | AE53: 1990-03-08 | AF53: 2006-12-09 | AG53: 0 | AH53: 0 | AI53: 0 | AJ53: 0 | AK53: 0 | AL53: 0 | AM53: 0 | AN53: 0 | AO53: 0 | AP53: 0 | AQ53: 0 | AR53: 0 | AS53: 0 | AT53: 0 | AU53: 0
A54: 008 | B54: 2 | C54: Occupant(s)18 | D54: 1931-09-03 | E54: 2008-03-16 | F54: 2012-03-10 | G54: 3 | H54: 2099-12-31 | I54: 2099-12-31 | J54: 2099-12-31 | K54: 0 | L54: 345000 | M54: 440000 | N54: 1 | O54: 1 | P54: 1 | R54: 0 | S54: 0 | T54: 0 | V54: 0 | W54: 0 | Y54: 76.53611111 | AC54: 1931-09-03 | AE54: 2008-03-16 | AF54: 2012-03-10 | AG54: 0 | AH54: 0 | AI54: 0 | AJ54: 0 | AK54: 0 | AL54: 0 | AM54: 0 | AN54: 0 | AO54: 0 | AP54: 0 | AQ54: 0 | AR54: 0 | AS54: 0 | AT54: 0 | AU54: 0
A55: 008 | B55: 3 | C55: Occupant(s)19 | D55: 1934-07-24 | E55: 2014-01-03 | F55: 2099-12-31 | G55: 0 | H55: 1936-08-24 | I55: 2014-01-03 | J55: 2099-12-31 | K55: 0 | L55: 440000 | M55: 470000 | N55: 1 | O55: 1 | P55: 1 | R55: 1 | S55: 1 | T55: 1 | V55: 0 | W55: 0 | Z55: 79.44166667 | AB55: 77.35833333 | AC55: 1934-07-24 | AD55: 1936-08-24 | AE55: 2014-01-03 | AF55: 2099-12-31 | AG55: 0 | AH55: 1 | AI55: 1 | AJ55: 1 | AK55: 1 | AL55: 1 | AM55: 1 | AN55: 1 | AO55: 1 | AP55: 1 | AQ55: 0 | AR55: 0 | AS55: 0 | AT55: 0 | AU55: 0
A56: 009 | B56: 1 | C56: Occupant(s)20 | D56: 1915-10-20 | E56: 1990-12-23 | F56: 2003-07-23 | G56: 1 | H56: 1913-02-26 | I56: 1990-12-23 | J56: 2006-01-13 | K56: 3 | L56: 151000 | M56: 343000 | N56: 1 | O56: 1 | P56: 1 | R56: 0 | S56: 0 | T56: 0 | V56: 0 | W56: 0 | Z56: 75.175 | AB56: 77.825 | AC56: 1915-10-20 | AD56: 1913-02-26 | AE56: 1990-12-23 | AF56: 2006-01-13 | AG56: 0 | AH56: 0 | AI56: 0 | AJ56: 0 | AK56: 0 | AL56: 0 | AM56: 0 | AN56: 0 | AO56: 0 | AP56: 0 | AQ56: 0 | AR56: 0 | AS56: 0 | AT56: 0 | AU56: 0
A57: 009 | B57: 2 | C57: Occupant(s)21 | D57: 1927-03-01 | E57: 2005-11-13 | F57: 2009-10-05 | G57: 3 | H57: 1922-02-21 | I57: 2006-01-13 | J57: 2010-04-07 | K57: 3 | L57: 343000 | M57: 400000 | N57: 1 | O57: 1 | P57: 1 | R57: 0 | S57: 0 | T57: 0 | V57: 0 | W57: 0 | Z57: 78.7 | AB57: 83.89444444 | AC57: 1927-03-01 | AD57: 1922-02-21 | AE57: 2005-11-13 | AF57: 2010-04-07 | AG57: =IF(AND($AE57<EOMONTH(AG$36,-12),$AF57>EOMONTH(AG$36,-12)),1,0) -> 0 | AH57: 0 | AI57: 0 | AJ57: 0 | AK57: 0 | AL57: 0 | AM57: 0 | AN57: 0 | AO57: 0 | AP57: 0 | AQ57: =IF(AND($AF57>EOMONTH(AQ$36,-12),$AF57<=AQ$36),1,0) -> 0 | AR57: 0 | AS57: 0 | AT57: 0 | AU57: 0
A58: 009 | B58: 3 | C58: Occupant(s)22 | D58: 2099-12-31 | E58: 2099-12-31 | F58: 2099-12-31 | G58: 0 | H58: 1929-10-15 | I58: 2011-08-19 | J58: 2099-12-31 | K58: 0 | L58: 400000 | M58: 480000 | N58: 1 | O58: 1 | P58: 1 | R58: 1 | S58: 0 | T58: 1 | V58: 0 | W58: 0 | AA58: 81.84444444 | AD58: 1929-10-15 | AE58: 2011-08-19 | AF58: 2099-12-31 | AG58: 1 | AH58: 1 | AI58: 1 | AJ58: 1 | AK58: 1 | AL58: 1 | AM58: 1 | AN58: 1 | AO58: 1 | AP58: 1 | AQ58: 0 | AR58: 0 | AS58: 0 | AT58: 0 | AU58: 0
A59: 010 | B59: 1 | C59: Occupant(s)23 | D59: 1913-05-03T21:00:00 | E59: 1990-01-28 | F59: 1991-11-03 | G59: 3 | H59: 1915-05-04T09:00:00 | I59: 1990-01-28 | J59: 1991-11-03 | K59: 3 | L59: 99500 | M59: 116000 | N59: 1 | O59: 1 | P59: 1 | R59: 0 | S59: 0 | T59: 0 | V59: 0 | W59: 0 | Z59: 76.73611111 | AB59: 74.73333333 | AC59: 1913-05-03T21:00:00 | AD59: 1915-05-04T09:00:00 | AE59: 1990-01-28 | AF59: 1991-11-03 | AG59: 0 | AH59: 0 | AI59: 0 | AJ59: 0 | AK59: 0 | AL59: 0 | AM59: 0 | AN59: 0 | AO59: 0 | AP59: 0 | AQ59: 0 | AR59: 0 | AS59: 0 | AT59: 0 | AU59: 0
A60: 010 | B60: 2 | C60: Occupant(s)24 | D60: 1930-11-09T15:00:00 | E60: 1991-11-16 | F60: 1994-05-11 | G60: 1 | H60: 2099-12-31 | I60: 2099-12-31 | J60: 2099-12-31 | K60: 0 | L60: 116000 | M60: 150000 | N60: 1 | O60: 1 | P60: 1 | R60: 0 | S60: 0 | T60: 0 | V60: 0 | W60: 0 | Y60: 61.01944444 | AC60: 1930-11-09T15:00:00 | AE60: 1991-11-16 | AF60: 1994-05-11 | AG60: 0 | AH60: 0 | AI60: 0 | AJ60: 0 | AK60: 0 | AL60: 0 | AM60: 0 | AN60: 0 | AO60: 0 | AP60: 0 | AQ60: 0 | AR60: 0 | AS60: 0 | AT60: 0 | AU60: 0
A61: 010 | B61: 3 | C61: Occupant(s)25 | D61: 1911-06-11 | E61: 1995-07-30 | F61: 2002-10-12 | G61: 3 | H61: 2099-12-31 | I61: 2099-12-31 | J61: 2099-12-31 | K61: 0 | L61: 150000 | M61: 182000 | N61: 1 | O61: 1 | P61: 1 | R61: 0 | S61: 0 | T61: 0 | V61: 0 | W61: 0 | Y61: 84.13611111 | AC61: 1911-06-11 | AE61: 1995-07-30 | AF61: 2002-10-12 | AG61: 0 | AH61: 0 | AI61: 0 | AJ61: 0 | AK61: 0 | AL61: 0 | AM61: 0 | AN61: 0 | AO61: 0 | AP61: 0 | AQ61: 0 | AR61: 0 | AS61: 0 | AT61: 0 | AU61: 0
A62: 010 | B62: 4 | C62: Occupant(s)26 | D62: 1920-07-08 | E62: 2003-07-18 | F62: 2006-02-13 | G62: 3 | H62: 1918-04-25 | I62: 2003-07-18 | J62: 2005-01-13 | K62: 1 | L62: 182000 | M62: 270000 | N62: 1 | O62: 1 | P62: 1 | R62: 0 | S62: 0 | T62: 0 | V62: 0 | W62: 0 | Z62: 83.02777778 | AB62: 85.23055556 | AC62: 1920-07-08 | AD62: 1918-04-25 | AE62: 2003-07-18 | AF62: 2006-02-13 | AG62: 0 | AH62: 0 | AI62: 0 | AJ62: 0 | AK62: 0 | AL62: 0 | AM62: 0 | AN62: 0 | AO62: 0 | AP62: 0 | AQ62: 0 | AR62: 0 | AS62: 0 | AT62: 0 | AU62: 0
A63: 010 | B63: 5 | C63: Occupant(s)27 | D63: 1927-05-02 | E63: 2006-10-26 | F63: 2099-12-31 | G63: 0 | H63: 2099-12-31 | I63: 2099-12-31 | J63: 2099-12-31 | K63: 0 | L63: 270000 | M63: 370000 | N63: 1 | O63: 1 | P63: 1 | R63: 1 | S63: 1 | T63: 0 | V63: 0 | W63: 0 | Y63: 79.48333333 | AC63: 1927-05-02 | AE63: 2006-10-26 | AF63: 2099-12-31 | AG63: 1 | AH63: 1 | AI63: 1 | AJ63: 1 | AK63: 1 | AL63: 1 | AM63: 1 | AN63: 1 | AO63: 1 | AP63: 1 | AQ63: 0 | AR63: 0 | AS63: 0 | AT63: 0 | AU63: 0
A64: 011 | B64: 1 | C64: Occupant(s)28 | D64: 1929-12-01T21:00:00 | E64: 1991-08-29 | F64: 2000-01-22 | G64: 3 | H64: 2099-12-31 | I64: 2099-12-31 | J64: 2099-12-31 | K64: 0 | L64: 117000 | M64: 182000 | N64: 1 | O64: 1 | P64: 1 | R64: 0 | S64: 0 | T64: 0 | V64: 0 | W64: 0 | Y64: 61.74444444 | AC64: 1929-12-01T21:00:00 | AE64: 1991-08-29 | AF64: 2000-01-22 | AG64: 0 | AH64: 0 | AI64: 0 | AJ64: 0 | AK64: 0 | AL64: 0 | AM64: 0 | AN64: 0 | AO64: 0 | AP64: 0 | AQ64: 0 | AR64: 0 | AS64: 0 | AT64: 0 | AU64: 0
A65: 011 | B65: 2 | C65: Occupant(s)29 | D65: 1926-10-30 | E65: 2000-09-08 | F65: 2099-12-31 | G65: 0 | H65: 2099-12-31 | I65: 2099-12-31 | J65: 2099-12-31 | K65: 0 | L65: 182000 | M65: 370000 | N65: 1 | O65: 1 | P65: 1 | R65: 1 | S65: 1 | T65: 0 | V65: 0 | W65: 0 | Y65: 73.85555556 | AC65: 1926-10-30 | AE65: 2000-09-08 | AF65: 2099-12-31 | AG65: 1 | AH65: 1 | AI65: 1 | AJ65: 1 | AK65: 1 | AL65: 1 | AM65: 1 | AN65: 1 | AO65: 1 | AP65: 1 | AQ65: 0 | AR65: 0 | AS65: 0 | AT65: 0 | AU65: 0
A66: 012 | B66: 1 | C66: Occupant(s)30 | D66: 1911-03-07T21:00:00 | E66: 1990-04-29 | F66: 1997-04-07 | G66: 3 | H66: 2099-12-31 | I66: 2099-12-31 | J66: 2099-12-31 | K66: 0 | L66: 153000 | M66: 200000 | N66: 1 | O66: 1 | P66: 1 | Q66: =IF(IF(AND(F66>0,F66<E66),1,0) + IF(AND(J66>0,J66<I66),1,0) >0, "Exit < entry","") ->  | R66: 0 | S66: 0 | T66: 0 | V66: 0 | W66: 0 | Y66: 79.14444444 | AC66: 1911-03-07T21:00:00 | AE66: 1990-04-29 | AF66: 1997-04-07 | AG66: 0 | AH66: 0 | AI66: 0 | AJ66: 0 | AK66: 0 | AL66: 0 | AM66: 0 | AN66: 0 | AO66: 0 | AP66: 0 | AQ66: 0 | AR66: 0 | AS66: 0 | AT66: 0 | AU66: 0
A67: 012 | B67: 2 | C67: Occupant(s)31 | D67: 1917-02-23T21:00:00 | E67: 1997-09-06 | F67: 1999-01-09 | G67: 3 | H67: 2099-12-31 | I67: 2099-12-31 | J67: 2099-12-31 | K67: 0 | L67: 200000 | M67: 225000 | N67: 1 | O67: 1 | P67: 1 | R67: 0 | S67: 0 | T67: 0 | V67: 0 | W67: 0 | Y67: 80.53611111 | AC67: 1917-02-23T21:00:00 | AE67: 1997-09-06 | AF67: 1999-01-09 | AG67: =IF(AND($AE67<EOMONTH(AG$36,-12),$AF67>EOMONTH(AG$36,-12)),1,0) -> 0 | AH67: 0 | AI67: 0 | AJ67: 0 | AK67: 0 | AL67: 0 | AM67: 0 | AN67: 0 | AO67: 0 | AP67: 0 | AQ67: =IF(AND($AF67>EOMONTH(AQ$36,-12),$AF67<=AQ$36),1,0) -> 0 | AR67: 0 | AS67: 0 | AT67: 0 | AU67: 0
A68: 012 | B68: 3 | C68: Occupant(s)32 | D68: 1924-01-19 | E68: 1999-08-26 | F68: 2099-12-31 | G68: 0 | H68: 2099-12-31 | I68: 2099-12-31 | J68: 2099-12-31 | K68: 0 | L68: 225000 | M68: 495000 | N68: 1 | O68: 1 | P68: 1 | R68: 1 | S68: 1 | T68: 0 | V68: 0 | W68: 0 | Y68: 75.60277778 | AC68: 1924-01-19 | AE68: 1999-08-26 | AF68: 2099-12-31 | AG68: 1 | AH68: 1 | AI68: 1 | AJ68: 1 | AK68: 1 | AL68: 1 | AM68: 1 | AN68: 1 | AO68: 1 | AP68: 1 | AQ68: 0 | AR68: 0 | AS68: 0 | AT68: 0 | AU68: 0
A69: 014 | B69: 1 | C69: Occupant(s)33 | D69: 1916-04-09T03:00:00 | E69: 1990-04-22 | F69: 1998-10-09 | G69: 3 | H69: 2099-12-31 | I69: 2099-12-31 | J69: 2099-12-31 | K69: 0 | L69: 103000 | M69: 160000 | N69: 1 | O69: 1 | P69: 1 | R69: 0 | S69: 0 | T69: 0 | V69: 0 | W69: 0 | Y69: 74.03611111 | AC69: 1916-04-09T03:00:00 | AE69: 1990-04-22 | AF69: 1998-10-09 | AG69: 0 | AH69: 0 | AI69: 0 | AJ69: 0 | AK69: 0 | AL69: 0 | AM69: 0 | AN69: 0 | AO69: 0 | AP69: 0 | AQ69: 0 | AR69: 0 | AS69: 0 | AT69: 0 | AU69: 0
A70: 014 | B70: 2 | C70: Occupant(s)34 | D70: 1920-02-23T09:00:00 | E70: 1999-06-09 | F70: 2000-08-24 | G70: 1 | H70: 2099-12-31 | I70: 2099-12-31 | J70: 2099-12-31 | K70: 0 | L70: 160000 | M70: 180000 | N70: 1 | O70: 1 | P70: 1 | R70: 0 | S70: 0 | T70: 0 | V70: 0 | W70: 0 | Y70: 79.29444444 | AC70: 1920-02-23T09:00:00 | AE70: 1999-06-09 | AF70: 2000-08-24 | AG70: 0 | AH70: 0 | AI70: 0 | AJ70: 0 | AK70: 0 | AL70: 0 | AM70: 0 | AN70: 0 | AO70: 0 | AP70: 0 | AQ70: 0 | AR70: 0 | AS70: 0 | AT70: 0 | AU70: 0
A71: 014 | B71: 3 | C71: Occupant(s)35 | D71: 1910-02-03 | E71: 2000-12-03 | F71: 2006-06-17 | G71: 3 | H71: 2099-12-31 | I71: 2099-12-31 | J71: 2099-12-31 | K71: 0 | L71: 180000 | M71: 278000 | N71: 1 | O71: 1 | P71: 1 | R71: 0 | S71: 0 | T71: 0 | V71: 0 | W71: 0 | Y71: 90.83333333 | AC71: 1910-02-03 | AE71: 2000-12-03 | AF71: 2006-06-17 | AG71: 0 | AH71: 0 | AI71: 0 | AJ71: 0 | AK71: 0 | AL71: 0 | AM71: 0 | AN71: 0 | AO71: 0 | AP71: 0 | AQ71: 0 | AR71: 0 | AS71: 0 | AT71: 0 | AU71: 0
A72: 014 | B72: 4 | C72: Occupant(s)36 | D72: 2099-12-31 | E72: 2099-12-31 | F72: 2099-12-31 | G72: 0 | H72: 1917-12-21 | I72: 2007-01-31 | J72: 2008-11-16 | K72: 1 | L72: 278000 | M72: 300000 | N72: 1 | O72: 1 | P72: 1 | R72: -1 | S72: 0 | T72: 0 | V72: 0 | W72: 0 | AA72: 89.11111111 | AD72: 1917-12-21 | AE72: 2007-01-31 | AG72: 1 | AH72: 1 | AI72: 1 | AJ72: 1 | AK72: 1 | AL72: 1 | AM72: 1 | AN72: 1 | AO72: 1 | AP72: 1 | AQ72: 0 | AR72: 0 | AS72: 0 | AT72: 0 | AU72: 0
A73: 014 | B73: 5 | C73: Occupant(s)37 | D73: 2099-12-31 | E73: 2099-12-31 | F73: 2099-12-31 | G73: 0 | H73: 1924-03-20 | I73: 2011-08-20 | J73: 2099-12-31 | K73: 0 | L73: 300000 | M73: 370000 | N73: 1 | O73: 1 | P73: 1 | R73: 1 | S73: 0 | T73: 1 | V73: 0 | W73: 0 | AA73: 87.41666667 | AD73: 1924-03-20 | AE73: 2011-08-20 | AF73: 2099-12-31 | AG73: 1 | AH73: 1 | AI73: 1 | AJ73: 1 | AK73: 1 | AL73: 1 | AM73: 1 | AN73: 1 | AO73: 1 | AP73: 1 | AQ73: 0 | AR73: 0 | AS73: 0 | AT73: 0 | AU73: 0
A74: 015 | B74: 1 | C74: Occupant(s)38 | D74: 1908-11-23T03:00:00 | E74: 1992-06-28 | F74: 1994-05-25 | G74: 3 | H74: 2099-12-31 | I74: 2099-12-31 | J74: 2099-12-31 | K74: 0 | L74: 142000 | M74: 198000 | N74: 1 | O74: 1 | P74: 1 | R74: 0 | S74: 0 | T74: 0 | V74: 0 | W74: 0 | Y74: 83.59722222 | AC74: 1908-11-23T03:00:00 | AE74: 1992-06-28 | AF74: 1994-05-25 | AG74: 0 | AH74: 0 | AI74: 0 | AJ74: 0 | AK74: 0 | AL74: 0 | AM74: 0 | AN74: 0 | AO74: 0 | AP74: 0 | AQ74: 0 | AR74: 0 | AS74: 0 | AT74: 0 | AU74: 0
A75: 015 | B75: 2 | C75: Occupant(s)39 | D75: 1920-03-28T09:00:00 | E75: 1995-08-05 | F75: 1996-09-27 | G75: 3 | H75: 1923-03-29T03:00:00 | I75: 1995-08-05 | J75: 1996-09-27 | K75: 3 | L75: 198000 | M75: 180000 | N75: 1 | O75: 1 | P75: 1 | R75: 0 | S75: 0 | T75: 0 | V75: 0 | W75: 0 | Z75: 75.35277778 | AB75: 72.35 | AC75: 1920-03-28T09:00:00 | AD75: 1923-03-29T03:00:00 | AE75: 1995-08-05 | AF75: 1996-09-27 | AG75: 0 | AH75: 0 | AI75: 0 | AJ75: 0 | AK75: 0 | AL75: 0 | AM75: 0 | AN75: 0 | AO75: 0 | AP75: 0 | AQ75: 0 | AR75: 0 | AS75: 0 | AT75: 0 | AU75: 0
A76: 015 | B76: 3 | C76: Occupant(s)40 | D76: 1932-06-10 | E76: 1997-06-26 | F76: 2099-12-31 | G76: 0 | H76: 2099-12-31 | I76: 2099-12-31 | J76: 2099-12-31 | K76: 0 | L76: 180000 | M76: 470000 | N76: 1 | O76: 1 | P76: 1 | R76: =IF(OR(S76>0,T76>0),1,IF(OR(ISBLANK(E76),E76>$D$7),-1,0)) -> 1 | S76: =IF(AND(ISNUMBER(E76),E76<=$D$7),IF((AND(ISNUMBER(F76), F76<=$D$7)),0,1),0) -> 1 | T76: =IF(AND(ISNUMBER(I76),I76<=$D$7),IF((AND(ISNUMBER(J76), J76<=$D$7)),0,1),0) -> 0 | V76: =IF(AND(ISNUMBER(F76),F76<$D$7),IF(G76>0,0,1),0) -> 0 | W76: =IF(AND(ISNUMBER(J76),J76<$D$7),IF(K76>0,0,1),0) -> 0 | Y76: 65.04444444 | AC76: 1932-06-10 | AE76: =MIN(E76,I76) -> 1997-06-26 | AF76: 2099-12-31 | AG76: 1 | AH76: 1 | AI76: 1 | AJ76: 1 | AK76: 1 | AL76: 1 | AM76: 1 | AN76: 1 | AO76: 1 | AP76: 1 | AQ76: 0 | AR76: 0 | AS76: 0 | AT76: 0 | AU76: 0
A77: Total occupied | B77: =R77 -> 14 | C77: Minimum | D77: =MIN(D$37:D76) -> 1908-11-23T03:00:00 | E77: =MIN(E$37:E76) -> 1989-10-21 | H77: =MIN(H$37:H76) -> 1913-02-26 | I77: =MIN(I$37:I76) -> 1990-01-20 | K77: $'000 | L77: =SUM(IF($R$37:$R76=1,L$37:L76,0)) -> 4664000 | M77: =SUM(IF($R$37:$R76=1,M$37:M76,0)) -> 6305000 | N77: =SUM(IF($R$37:$R76=1,N$37:N76,0)) -> 14 | O77: =SUM(IF($R$37:$R76=1,O$37:O76,0)) -> 14 | P77: =SUM(IF($R$37:$R76=1,P$37:P76,0)) -> 14 | Q77: =COUNT(IF(Q$37:Q76<>"",1,"") )& " error(s)" -> 0 error(s) | R77: =SUM(IF(R$37:R76=1,1,0)) -> 14 | S77: =SUM(IF(S$37:S76=1,1,0)) -> 11 | T77: =SUM(IF(T$37:T76=1,1,0)) -> 4 | V77: =MIN(V$37:V76) -> 0 | W77: =MIN(W$37:W76) -> 0 | X77: Average | Y77: =AVERAGE(Y37:Y76) -> 74.74279835 | Z77: =AVERAGE(Z37:Z76) -> 75.13333333 | AA77: =AVERAGE(AA37:AA76) -> 80.15388889 | AB77: =AVERAGE(AB37:AB76) -> 76.47083333 | AC77: 1923-09-30T07:06:51.429 | AD77: 1923-03-01T12:00:00 | AE77: 1999-08-02T21:36:00 | AF77: 2038-10-09T13:53:41.053 | AG77: =SUM(AG37:AG76) -> 12 | AH77: 16 | AI77: 16 | AJ77: 16 | AK77: 16 | AL77: 16 | AM77: 16 | AN77: 16 | AO77: 16 | AP77: 16 | AQ77: 0 | AR77: 0 | AS77: 0 | AT77: 0 | AU77: 0
A78: Vacant & reserved | B78: =R78 -> 2 | C78: Maximum | D78: =MAX(D$37:D76) -> 2099-12-31 | E78: =MAX(E$37:E76) -> 2099-12-31 | H78: =MAX(H$37:H76) -> 2099-12-31 | I78: =MAX(I$37:I76) -> 2099-12-31 | K78: $'000 | L78: =SUM(IF($R$37:$R76=-1,L$37:L76,0)) -> 425000 | M78: =SUM(IF($R$37:$R76=-1,M$37:M76,0)) -> 650000 | N78: =SUM(IF($R$37:$R76=-1,N$37:N76,0)) -> 2 | O78: =SUM(IF($R$37:$R76=-1,O$37:O76,0)) -> 2 | P78: =SUM(IF($R$37:$R76=-1,P$37:P76,0)) -> 2 | R78: =SUM(IF(R$37:R76=-1,1,0)) -> 2 | S78: =R78 -> 2 | T78: =S78 -> 2 | V78: =MAX(V$37:V76) -> 0 | W78: =MAX(W$37:W76) -> 0 | AF78: =IF(SUM(AG77:AP77)-SUM(AQ77:AU77)<>0,2*SUM(AQ77:AU77)/(SUM(AG77:AP77)-SUM(AQ77:AU77)),0) -> 0 | AG78: =IF((AG77+AL77-AQ77)<>0,2*AQ77/(AG77+AL77-AQ77),0) -> 0 | AH78: =IF((AH77+AM77-AR77)<>0,2*AR77/(AH77+AM77-AR77),0) -> 0 | AI78: =IF((AI77+AN77-AS77)<>0,2*AS77/(AI77+AN77-AS77),0) -> 0 | AJ78: =IF((AJ77+AO77-AT77)<>0,2*AT77/(AJ77+AO77-AT77),0) -> 0 | AK78: =IF((AK77+AP77-AU77)<>0,2*AU77/(AK77+AP77-AU77),0) -> 0
A79: Terminations | B79: =R79 -> 24 | C79: Average | D79: =AVERAGE(D$37:D76) -> 1945-10-11T06:13:30 | E79: =AVERAGE(E$37:E76) -> 2011-04-03T21:00:00 | H79: =AVERAGE(H$37:H76) -> 2042-07-11T17:42:00 | I79: =AVERAGE(I$37:I76) -> 2067-11-03T11:24:00 | K79: $'000 | L79: =SUM(IF($R$37:$R76=0,L$37:L76,0)) -> 4038750 | M79: =SUM(IF($R$37:$R76=0,M$37:M76,0)) -> 6572750 | N79: =SUM(IF($R$37:$R76=0,N$37:N76,0)) -> 24 | O79: =SUM(IF($R$37:$R76=0,O$37:O76,0)) -> 24 | P79: =SUM(IF($R$37:$R76=0,P$37:P76,0)) -> 24 | R79: =SUM(IF(R$37:R76=0,1,0)) -> 24 | S79: =SUM(IF($S$37:$S$76>0,1,0)) -> 11 | T79: =SUM(IF($T$37:$T$76>0,1,0)) -> 4 | V79: =AVERAGE(V$37:V76) -> 0 | W79: =AVERAGE(W$37:W76) -> 0
A80: All | B80: =R80 -> 40 | K80: $'000 | L80: =SUM(L$37:L76) -> 9127750 | M80: =SUM(M$37:M76) -> 13527750 | N80: =SUM(N$37:N76) -> 40 | O80: =SUM(O$37:O76) -> 40 | P80: =SUM(P$37:P76) -> 40 | R80: =COUNT(R$37:R76) -> 40 | S80: =COUNT(S$37:S76) -> 40 | T80: =COUNT(T$37:T76) -> 40
A81: Average live | D81: =SUM(IF($S$37:$S76=1,D$37:D76,0)/SUM(IF($S$37:$S76=1,1,0))) -> 1931-01-07T08:43:38.182 | E81: =SUM(IF($S$37:$S76=1,E$37:E76,0)/SUM(IF($S$37:$S76=1,1,0))) -> 2006-09-06T21:49:05.455 | H81: =SUM(IF($T$37:$T76=1,H$37:H76,0)/SUM(IF($T$37:$T76=1,1,0))) -> 1931-08-04 | I81: =SUM(IF($T$37:$T76=1,I$37:I76,0)/SUM(IF($T$37:$T76=1,1,0))) -> 2012-05-13T12:00:00 | L81: =SUM(IF($R$37:$R76=1,L$37:L76,0)/SUM(IF($R$37:$R76=1,1,0))) -> 333142.8571 | M81: =SUM(IF($R$37:$R76=1,M$37:M76,0)/SUM(IF($R$37:$R76=1,1,0))) -> 450357.1429 | N81: =SUM(IF($R$37:$R76=1,N$37:N76,0)/SUM(IF($R$37:$R76=1,1,0))) -> 1 | O81: =SUM(IF($R$37:$R76=1,O$37:O76,0)/SUM(IF($R$37:$R76=1,1,0))) -> 1 | P81: =SUM(IF($R$37:$R76=1,P$37:P76,0)/SUM(IF($R$37:$R76=1,1,0))) -> 1
A82: Maximum | D82: =MAX(IF(D$37:D76<NOW()+3000,D$37:D76,0)) -> 1944-09-24 | E82: =MAX(IF(E$37:E76<NOW()+3000,E$37:E76,0)) -> 2014-06-29 | F82: =MAX(IF(F$37:F76<NOW()+3000,F$37:F76,0)) -> 2013-08-18 | G82: =MAX(G$37:G76) -> 3 | H82: =MAX(IF(H$37:H76<NOW()+3000,H$37:H76,0)) -> 1936-08-24 | I82: =MAX(IF(I$37:I76<NOW()+3000,I$37:I76,0)) -> 2014-01-03 | J82: =MAX(IF(J$37:J76<NOW()+3000,J$37:J76,0)) -> 2012-02-21 | K82: =MAX(K$37:K76) -> 3 | L82: =MAX(L$37:L76) -> 480000 | M82: =MAX(M$37:M76) -> 495000 | N82: =MAX(N$37:N76) -> 1 | O82: =MAX(O$37:O76) -> 1 | P82: =MAX(P$37:P76) -> 1
A83: Minimum | D83: =MIN(D$37:D76) -> 1908-11-23T03:00:00 | E83: =MIN(E$37:E76) -> 1989-10-21 | F83: =MIN(F$37:F76) -> 1991-11-03 | G83: =MIN(G$37:G76) -> 0 | H83: =MIN(H$37:H76) -> 1913-02-26 | I83: =MIN(I$37:I76) -> 1990-01-20 | J83: =MIN(J$37:J76) -> 1991-11-03 | K83: =MIN(K$37:K76) -> 0 | L83: =MIN(L$37:L76) -> 99500 | M83: =MIN(M$37:M76) -> 116000 | N83: =MIN(N$37:N76) -> 1 | O83: =MIN(O$37:O76) -> 1 | P83: =MIN(P$37:P76) -> 1
L84: =IF(SUM(L77:L79)=L80,"ok","Error") -> ok | M84: =IF(SUM(M77:M79)=M80,"ok","Error") -> ok | N84: =IF(SUM(N77:N79)=N80,"ok","Error") -> ok | O84: =IF(SUM(O77:O79)=O80,"ok","Error") -> ok | P84: =IF(SUM(P77:P79)=P80,"ok","Error") -> ok | R84: =IF(SUM(R77:R79)=R80,"ok","Error") -> ok
A85: Row of maximum | D85: =MIN(IF(D$37:D76=D82,ROW(D$37:D76),999999)) -> 52 | E85: =MIN(IF(E$37:E76=E82,ROW(E$37:E76),999999)) -> 49 | F85: =MIN(IF(F$37:F76=F82,ROW(F$37:F76),999999)) -> 37 | G85: =MIN(IF(G$37:G76=G82,ROW(G$37:G76),999999)) -> 37 | H85: =MIN(IF(H$37:H76=H82,ROW(H$37:H76),999999)) -> 55 | I85: =MIN(IF(I$37:I76=I82,ROW(I$37:I76),999999)) -> 55 | J85: =MIN(IF(J$37:J76=J82,ROW(J$37:J76),999999)) -> 44 | K85: =MIN(IF(K$37:K76=K82,ROW(K$37:K76),999999)) -> 56 | L85: =MIN(IF(L$37:L76=L82,ROW(L$37:L76),999999)) -> 38 | M85: =MIN(IF(M$37:M76=M82,ROW(M$37:M76),999999)) -> 68 | N85: =MIN(IF(N$37:N76=N82,ROW(N$37:N76),999999)) -> 37 | O85: =MIN(IF(O$37:O76=O82,ROW(O$37:O76),999999)) -> 37 | P85: =MIN(IF(P$37:P76=P82,ROW(P$37:P76),999999)) -> 37
A86: Row of minimum | D86: =MIN(IF(D$37:D76=D83,ROW(D$37:D76),999999)) -> 74 | E86: =MIN(IF(E$37:E76=E83,ROW(E$37:E76),999999)) -> 50 | F86: =MIN(IF(F$37:F76=F83,ROW(F$37:F76),999999)) -> 59 | G86: =MIN(IF(G$37:G76=G83,ROW(G$37:G76),999999)) -> 38 | H86: =MIN(IF(H$37:H76=H83,ROW(H$37:H76),999999)) -> 56 | I86: =MIN(IF(I$37:I76=I83,ROW(I$37:I76),999999)) -> 37 | J86: =MIN(IF(J$37:J76=J83,ROW(J$37:J76),999999)) -> 59 | K86: =MIN(IF(K$37:K76=K83,ROW(K$37:K76),999999)) -> 38 | L86: =MIN(IF(L$37:L76=L83,ROW(L$37:L76),999999)) -> 59 | M86: =MIN(IF(M$37:M76=M83,ROW(M$37:M76),999999)) -> 59 | N86: =MIN(IF(N$37:N76=N83,ROW(N$37:N76),999999)) -> 37 | O86: =MIN(IF(O$37:O76=O83,ROW(O$37:O76),999999)) -> 37 | P86: =MIN(IF(P$37:P76=P83,ROW(P$37:P76),999999)) -> 37
A90: Entry distribution
A92: Age | B92: Single female entry | C92: Single male entry | D92: Coupled female entry | E92: Coupled male entry
A93: 57 | B93: =SUM(IF(EntAgeFS<>"",1,0)*IF(EntAgeFS>=$G93,1,0)*IF(EntAgeFS<$H93,1,0)) -> 1 | C93: =SUM(IF(EntAgeMS<>"",1,0)*IF(EntAgeMS>=$G93,1,0)*IF(EntAgeMS<$H93,1,0)) -> 0 | D93: =SUM(IF(EntAgeFC<>"",1,0)*IF(EntAgeFC>=$G93,1,0)*IF(EntAgeFC<$H93,1,0)) -> 0 | E93: =SUM(IF(EntAgeMC="",1,0)*IF(EntAgeMC>=$G93,1,0)*IF(EntAgeMC<$H93,1,0)) -> 0 | G93: 5 | H93: =A93+3 -> 60
A94: =5+A93 -> 62 | B94: =SUM(IF(EntAgeFS<>"",1,0)*IF(EntAgeFS>=$G94,1,0)*IF(EntAgeFS<$H94,1,0)) -> 3 | C94: =SUM(IF(EntAgeMS<>"",1,0)*IF(EntAgeMS>=$G94,1,0)*IF(EntAgeMS<$H94,1,0)) -> 0 | D94: =SUM(IF(EntAgeFC<>"",1,0)*IF(EntAgeFC>=$G94,1,0)*IF(EntAgeFC<$H94,1,0)) -> 1 | E94: =SUM(IF(EntAgeMC="",1,0)*IF(EntAgeMC>=$G94,1,0)*IF(EntAgeMC<$H94,1,0)) -> 0 | G94: =A94-2 -> 60 | H94: =A94+3 -> 65
A95: 67 | B95: =SUM(IF(EntAgeFS<>"",1,0)*IF(EntAgeFS>=$G95,1,0)*IF(EntAgeFS<$H95,1,0)) -> 2 | C95: =SUM(IF(EntAgeMS<>"",1,0)*IF(EntAgeMS>=$G95,1,0)*IF(EntAgeMS<$H95,1,0)) -> 1 | D95: =SUM(IF(EntAgeFC<>"",1,0)*IF(EntAgeFC>=$G95,1,0)*IF(EntAgeFC<$H95,1,0)) -> 1 | E95: =SUM(IF(EntAgeMC="",1,0)*IF(EntAgeMC>=$G95,1,0)*IF(EntAgeMC<$H95,1,0)) -> 0 | G95: 65 | H95: 70
A96: 72 | B96: =SUM(IF(EntAgeFS<>"",1,0)*IF(EntAgeFS>=$G96,1,0)*IF(EntAgeFS<$H96,1,0)) -> 7 | C96: =SUM(IF(EntAgeMS<>"",1,0)*IF(EntAgeMS>=$G96,1,0)*IF(EntAgeMS<$H96,1,0)) -> 0 | D96: =SUM(IF(EntAgeFC<>"",1,0)*IF(EntAgeFC>=$G96,1,0)*IF(EntAgeFC<$H96,1,0)) -> 0 | E96: =SUM(IF(EntAgeMC="",1,0)*IF(EntAgeMC>=$G96,1,0)*IF(EntAgeMC<$H96,1,0)) -> 0 | G96: 70 | H96: 75
A97: 77 | B97: =SUM(IF(EntAgeFS<>"",1,0)*IF(EntAgeFS>=$G97,1,0)*IF(EntAgeFS<$H97,1,0)) -> 8 | C97: =SUM(IF(EntAgeMS<>"",1,0)*IF(EntAgeMS>=$G97,1,0)*IF(EntAgeMS<$H97,1,0)) -> 1 | D97: =SUM(IF(EntAgeFC<>"",1,0)*IF(EntAgeFC>=$G97,1,0)*IF(EntAgeFC<$H97,1,0)) -> 5 | E97: =SUM(IF(EntAgeMC="",1,0)*IF(EntAgeMC>=$G97,1,0)*IF(EntAgeMC<$H97,1,0)) -> 0 | G97: 75 | H97: 80
A98: 82 | B98: =SUM(IF(EntAgeFS<>"",1,0)*IF(EntAgeFS>=$G98,1,0)*IF(EntAgeFS<$H98,1,0)) -> 4 | C98: =SUM(IF(EntAgeMS<>"",1,0)*IF(EntAgeMS>=$G98,1,0)*IF(EntAgeMS<$H98,1,0)) -> 1 | D98: =SUM(IF(EntAgeFC<>"",1,0)*IF(EntAgeFC>=$G98,1,0)*IF(EntAgeFC<$H98,1,0)) -> 1 | E98: =SUM(IF(EntAgeMC="",1,0)*IF(EntAgeMC>=$G98,1,0)*IF(EntAgeMC<$H98,1,0)) -> 0 | G98: 80 | H98: 85
A99: 87 | B99: =SUM(IF(EntAgeFS<>"",1,0)*IF(EntAgeFS>=$G99,1,0)*IF(EntAgeFS<$H99,1,0)) -> 1 | C99: =SUM(IF(EntAgeMS<>"",1,0)*IF(EntAgeMS>=$G99,1,0)*IF(EntAgeMS<$H99,1,0)) -> 2 | D99: =SUM(IF(EntAgeFC<>"",1,0)*IF(EntAgeFC>=$G99,1,0)*IF(EntAgeFC<$H99,1,0)) -> 0 | E99: =SUM(IF(EntAgeMC="",1,0)*IF(EntAgeMC>=$G99,1,0)*IF(EntAgeMC<$H99,1,0)) -> 0 | G99: 85 | H99: 90
A100: 92 | B100: =SUM(IF(EntAgeFS<>"",1,0)*IF(EntAgeFS>=$G100,1,0)*IF(EntAgeFS<$H100,1,0)) -> 1 | C100: =SUM(IF(EntAgeMS<>"",1,0)*IF(EntAgeMS>=$G100,1,0)*IF(EntAgeMS<$H100,1,0)) -> 0 | D100: =SUM(IF(EntAgeFC<>"",1,0)*IF(EntAgeFC>=$G100,1,0)*IF(EntAgeFC<$H100,1,0)) -> 0 | E100: =SUM(IF(EntAgeMC="",1,0)*IF(EntAgeMC>=$G100,1,0)*IF(EntAgeMC<$H100,1,0)) -> 0 | G100: =A100-2 -> 90 | H100: =A100+3 -> 95
A101: 97 | B101: =SUM(IF(EntAgeFS<>"",1,0)*IF(EntAgeFS>=$G101,1,0)*IF(EntAgeFS<$H101,1,0)) -> 0 | C101: =SUM(IF(EntAgeMS<>"",1,0)*IF(EntAgeMS>=$G101,1,0)*IF(EntAgeMS<$H101,1,0)) -> 0 | D101: =SUM(IF(EntAgeFC<>"",1,0)*IF(EntAgeFC>=$G101,1,0)*IF(EntAgeFC<$H101,1,0)) -> 0 | E101: =SUM(IF(EntAgeMC="",1,0)*IF(EntAgeMC>=$G101,1,0)*IF(EntAgeMC<$H101,1,0)) -> 0 | G101: 95 | H101: 199
A102: All | B102: =SUM(B93:B101) -> 27 | C102: =SUM(C93:C101) -> 5 | D102: =SUM(D93:D101) -> 8 | E102: =SUM(E93:E101) -> 0
A105: Final date | D105: =DATE(2099,12,31) -> 2099-12-31
D119: =IF(D37<DATE(2099,12,31),D37+1500,D37) -> 1924-05-02 | E119: 1994-02-28 | F119: 2017-09-26 | H119: =IF(H37<DATE(2099,12,31),H37+1500,H37) -> 1921-03-06 | I119: 1994-02-28 | J119: 2007-09-29
D120: =IF(D38<DATE(2099,12,31),D38+1500,D38) -> 1946-02-12 | E120: 2018-06-25 | F120: 2099-12-31 | H120: =IF(H38<DATE(2099,12,31),H38+1500,H38) -> 2099-12-31 | I120: 2099-12-31 | J120: 2099-12-31
D121: =IF(D39<DATE(2099,12,31),D39+1500,D39) -> 1922-08-11 | E121: 1996-02-10 | F121: 2099-12-31 | H121: =IF(H39<DATE(2099,12,31),H39+1500,H39) -> 2099-12-31 | I121: 2099-12-31 | J121: 2099-12-31
D122: =IF(D40<DATE(2099,12,31),D40+1500,D40) -> 2099-12-31 | E122: 2099-12-31 | F122: 2099-12-31 | H122: =IF(H40<DATE(2099,12,31),H40+1500,H40) -> 1928-11-24 | I122: 1994-10-23 | J122: 2011-05-15
D123: =IF(D41<DATE(2099,12,31),D41+1500,D41) -> 1936-06-26 | E123: 2011-09-27 | F123: 2099-12-31 | H123: =IF(H41<DATE(2099,12,31),H41+1500,H41) -> 2099-12-31 | I123: 2099-12-31 | J123: 2099-12-31
D124: =IF(D42<DATE(2099,12,31),D42+1500,D42) -> 1929-09-14 | E124: 1994-04-16 | F124: 2014-09-22 | H124: =IF(H42<DATE(2099,12,31),H42+1500,H42) -> 2099-12-31 | I124: 2099-12-31 | J124: 2099-12-31
D125: =IF(D43<DATE(2099,12,31),D43+1500,D43) -> 1930-05-23 | E125: 2016-05-10 | F125: 2099-12-31 | H125: =IF(H43<DATE(2099,12,31),H43+1500,H43) -> 2099-12-31 | I125: 2099-12-31 | J125: 2099-12-31
D126: =IF(D44<DATE(2099,12,31),D44+1500,D44) -> 1931-06-08 | E126: 1994-04-02 | F126: 2015-08-15 | H126: =IF(H44<DATE(2099,12,31),H44+1500,H44) -> 1926-11-09 | I126: 1994-04-02 | J126: 2016-03-31
D127: =IF(D45<DATE(2099,12,31),D45+1500,D45) -> 2099-12-31 | E127: 2099-12-31 | F127: 2099-12-31 | H127: =IF(H45<DATE(2099,12,31),H45+1500,H45) -> 1939-10-25 | I127: 2016-04-19 | J127: 2099-12-31
D128: =IF(D46<DATE(2099,12,31),D46+1500,D46) -> 1924-11-22T09:00:00 | E128: 1995-04-18 | F128: 1997-05-24 | H128: =IF(H46<DATE(2099,12,31),H46+1500,H46) -> 2099-12-31 | I128: 2099-12-31 | J128: 2099-12-31
D129: =IF(D47<DATE(2099,12,31),D47+1500,D47) -> 1919-04-08 | E129: 1997-05-24 | F129: 2008-09-05 | H129: =IF(H47<DATE(2099,12,31),H47+1500,H47) -> 2099-12-31 | I129: 2099-12-31 | J129: 2099-12-31
D130: =IF(D48<DATE(2099,12,31),D48+1500,D48) -> 1938-01-03 | E130: 2008-11-23 | F130: 2016-03-08 | H130: =IF(H48<DATE(2099,12,31),H48+1500,H48) -> 2099-12-31 | I130: 2099-12-31 | J130: 2099-12-31
D131: =IF(D49<DATE(2099,12,31),D49+1500,D49) -> 1936-03-11 | E131: 2018-08-07 | F131: 2099-12-31 | H131: =IF(H49<DATE(2099,12,31),H49+1500,H49) -> 2099-12-31 | I131: 2099-12-31 | J131: 2099-12-31
D132: =IF(D50<DATE(2099,12,31),D50+1500,D50) -> 1934-02-21T21:00:00 | E132: 1993-11-29 | F132: 1996-08-23 | H132: =IF(H50<DATE(2099,12,31),H50+1500,H50) -> 2099-12-31 | I132: 2099-12-31 | J132: 2099-12-31
D133: =IF(D51<DATE(2099,12,31),D51+1500,D51) -> 1922-01-16 | E133: 1996-08-27 | F133: 2014-10-05 | H133: =IF(H51<DATE(2099,12,31),H51+1500,H51) -> 2099-12-31 | I133: 2099-12-31 | J133: 2099-12-31
D134: =IF(D52<DATE(2099,12,31),D52+1500,D52) -> 1948-11-02 | E134: 2018-03-24 | F134: 2099-12-31 | H134: =IF(H52<DATE(2099,12,31),H52+1500,H52) -> 2099-12-31 | I134: 2099-12-31 | J134: 2099-12-31
D135: =IF(D53<DATE(2099,12,31),D53+1500,D53) -> 1918-05-17 | E135: =IF(E53<DATE(2099,12,31),E53+1500,E53) -> 1994-04-16 | F135: 2011-01-17 | H135: =IF(H53<DATE(2099,12,31),H53+1500,H53) -> 2099-12-31 | I135: 2099-12-31 | J135: 2099-12-31
D136: =IF(D54<DATE(2099,12,31),D54+1500,D54) -> 1935-10-12 | E136: 2012-04-24 | F136: 2016-04-18 | H136: =IF(H54<DATE(2099,12,31),H54+1500,H54) -> 2099-12-31 | I136: 2099-12-31 | J136: 2099-12-31
D137: =IF(D55<DATE(2099,12,31),D55+1500,D55) -> 1938-09-01 | E137: 2018-02-11 | F137: 2099-12-31 | H137: =IF(H55<DATE(2099,12,31),H55+1500,H55) -> 1940-10-02 | I137: 2018-02-11 | J137: 2099-12-31
D138: =IF(D56<DATE(2099,12,31),D56+1500,D56) -> 1919-11-28 | E138: 1995-01-31 | F138: 2007-08-31 | H138: =IF(H56<DATE(2099,12,31),H56+1500,H56) -> 1917-04-06 | I138: 1995-01-31 | J138: 2010-02-21
D139: =IF(D57<DATE(2099,12,31),D57+1500,D57) -> 1931-04-09 | E139: 2009-12-22 | F139: 2013-11-13 | H139: =IF(H57<DATE(2099,12,31),H57+1500,H57) -> 1926-04-01 | I139: 2010-02-21 | J139: 2014-05-16
D140: =IF(D58<DATE(2099,12,31),D58+1500,D58) -> 2099-12-31 | E140: 2099-12-31 | F140: 2099-12-31 | H140: =IF(H58<DATE(2099,12,31),H58+1500,H58) -> 1933-11-23 | I140: 2015-09-27 | J140: 2099-12-31
D141: =IF(D59<DATE(2099,12,31),D59+1500,D59) -> 1917-06-11T21:00:00 | E141: 1994-03-08 | F141: 1995-12-12 | H141: =IF(H59<DATE(2099,12,31),H59+1500,H59) -> 1919-06-12T09:00:00 | I141: 1994-03-08 | J141: 1995-12-12
D142: =IF(D60<DATE(2099,12,31),D60+1500,D60) -> 1934-12-18T15:00:00 | E142: 1995-12-25 | F142: 1998-06-19 | H142: =IF(H60<DATE(2099,12,31),H60+1500,H60) -> 2099-12-31 | I142: 2099-12-31 | J142: 2099-12-31
D143: =IF(D61<DATE(2099,12,31),D61+1500,D61) -> 1915-07-20 | E143: 1999-09-07 | F143: 2006-11-20 | H143: =IF(H61<DATE(2099,12,31),H61+1500,H61) -> 2099-12-31 | I143: 2099-12-31 | J143: 2099-12-31
D144: =IF(D62<DATE(2099,12,31),D62+1500,D62) -> 1924-08-16 | E144: 2007-08-26 | F144: 2010-03-24 | H144: =IF(H62<DATE(2099,12,31),H62+1500,H62) -> 1922-06-03 | I144: 2007-08-26 | J144: 2009-02-21
D145: =IF(D63<DATE(2099,12,31),D63+1500,D63) -> 1931-06-10 | E145: 2010-12-04 | F145: 2099-12-31 | H145: =IF(H63<DATE(2099,12,31),H63+1500,H63) -> 2099-12-31 | I145: 2099-12-31 | J145: 2099-12-31
D146: =IF(D64<DATE(2099,12,31),D64+1500,D64) -> 1934-01-09T21:00:00 | E146: 1995-10-07 | F146: 2004-03-01 | H146: =IF(H64<DATE(2099,12,31),H64+1500,H64) -> 2099-12-31 | I146: 2099-12-31 | J146: 2099-12-31
D147: =IF(D65<DATE(2099,12,31),D65+1500,D65) -> 1930-12-08 | E147: 2004-10-17 | F147: 2099-12-31 | H147: =IF(H65<DATE(2099,12,31),H65+1500,H65) -> 2099-12-31 | I147: 2099-12-31 | J147: 2099-12-31
D148: =IF(D66<DATE(2099,12,31),D66+1500,D66) -> 1915-04-15T21:00:00 | E148: 1994-06-07 | F148: 2001-05-16 | H148: =IF(H66<DATE(2099,12,31),H66+1500,H66) -> 2099-12-31 | I148: 2099-12-31 | J148: 2099-12-31
D149: =IF(D67<DATE(2099,12,31),D67+1500,D67) -> 1921-04-03T21:00:00 | E149: 2001-10-15 | F149: 2003-02-17 | H149: =IF(H67<DATE(2099,12,31),H67+1500,H67) -> 2099-12-31 | I149: 2099-12-31 | J149: 2099-12-31
D150: =IF(D68<DATE(2099,12,31),D68+1500,D68) -> 1928-02-27 | E150: 2003-10-04 | F150: 2099-12-31 | H150: =IF(H68<DATE(2099,12,31),H68+1500,H68) -> 2099-12-31 | I150: 2099-12-31 | J150: 2099-12-31
D151: =IF(D69<DATE(2099,12,31),D69+1500,D69) -> 1920-05-18T03:00:00 | E151: 1994-05-31 | F151: 2002-11-17 | H151: =IF(H69<DATE(2099,12,31),H69+1500,H69) -> 2099-12-31 | I151: 2099-12-31 | J151: 2099-12-31
D152: =IF(D70<DATE(2099,12,31),D70+1500,D70) -> 1924-04-02T09:00:00 | E152: 2003-07-18 | F152: 2004-10-02 | H152: =IF(H70<DATE(2099,12,31),H70+1500,H70) -> 2099-12-31 | I152: 2099-12-31 | J152: 2099-12-31
D153: =IF(D71<DATE(2099,12,31),D71+1500,D71) -> 1914-03-14 | E153: 2005-01-11 | F153: 2010-07-26 | H153: =IF(H71<DATE(2099,12,31),H71+1500,H71) -> 2099-12-31 | I153: 2099-12-31 | J153: 2099-12-31
D154: =IF(D72<DATE(2099,12,31),D72+1500,D72) -> 2099-12-31 | E154: 2099-12-31 | F154: 2099-12-31 | H154: =IF(H72<DATE(2099,12,31),H72+1500,H72) -> 1922-01-29 | I154: 2011-03-11 | J154: 2012-12-25
D155: =IF(D73<DATE(2099,12,31),D73+1500,D73) -> 2099-12-31 | E155: 2099-12-31 | F155: 2099-12-31 | H155: =IF(H73<DATE(2099,12,31),H73+1500,H73) -> 1928-04-28 | I155: 2015-09-28 | J155: 2099-12-31
D156: =IF(D74<DATE(2099,12,31),D74+1500,D74) -> 1913-01-01T03:00:00 | E156: 1996-08-06 | F156: 1998-07-03 | H156: =IF(H74<DATE(2099,12,31),H74+1500,H74) -> 2099-12-31 | I156: 2099-12-31 | J156: 2099-12-31
D157: =IF(D75<DATE(2099,12,31),D75+1500,D75) -> 1924-05-06T09:00:00 | E157: 1999-09-13 | F157: 2000-11-05 | H157: =IF(H75<DATE(2099,12,31),H75+1500,H75) -> 1927-05-07T03:00:00 | I157: 1999-09-13 | J157: 2000-11-05
D158: =IF(D76<DATE(2099,12,31),D76+1500,D76) -> 1936-07-19 | E158: 2001-08-04 | F158: 2099-12-31 | H158: =IF(H76<DATE(2099,12,31),H76+1500,H76) -> 2099-12-31 | I158: 2099-12-31 | J158: 2099-12-31
D159: =IF(D77<DATE(2099,12,31),D77+1500,D77) -> 1913-01-01T03:00:00 | E159: 1993-11-29 | F159: 1904-02-08 | H159: =IF(H77<DATE(2099,12,31),H77+1500,H77) -> 1917-04-06 | I159: 1994-02-28 | J159: 1904-02-08
D160: =IF(D78<DATE(2099,12,31),D78+1500,D78) -> 2099-12-31 | E160: 2099-12-31 | F160: 1904-02-08 | H160: =IF(H78<DATE(2099,12,31),H78+1500,H78) -> 2099-12-31 | I160: 2099-12-31 | J160: 1904-02-08
D161: =IF(D79<DATE(2099,12,31),D79+1500,D79) -> 1949-11-19T06:13:30 | E161: 2015-05-12T21:00:00 | F161: 1904-02-08 | H161: =IF(H79<DATE(2099,12,31),H79+1500,H79) -> 2046-08-19T17:42:00 | I161: 2071-12-12T11:24:00 | J161: 1904-02-08
D162: =IF(D80<DATE(2099,12,31),D80+1500,D80) -> 1904-02-08 | E162: 1904-02-08 | F162: 1904-02-08 | H162: =IF(H80<DATE(2099,12,31),H80+1500,H80) -> 1904-02-08 | I162: 1904-02-08 | J162: 1904-02-08
D163: =IF(D81<DATE(2099,12,31),D81+1500,D81) -> 1935-02-15T08:43:38.182 | E163: 2010-10-15T21:49:05.455 | F163: 1904-02-08 | H163: =IF(H81<DATE(2099,12,31),H81+1500,H81) -> 1935-09-12 | I163: 2016-06-21T12:00:00 | J163: 1904-02-08
D164: =IF(D82<DATE(2099,12,31),D82+1500,D82) -> 1948-11-02 | E164: 2018-08-07 | F164: 2017-09-26 | H164: =IF(H82<DATE(2099,12,31),H82+1500,H82) -> 1940-10-02 | I164: 2018-02-11 | J164: 2016-03-31
D165: =IF(D83<DATE(2099,12,31),D83+1500,D83) -> 1913-01-01T03:00:00 | E165: 1993-11-29 | F165: 1995-12-12 | H165: =IF(H83<DATE(2099,12,31),H83+1500,H83) -> 1917-04-06 | I165: 1994-02-28 | J165: 1995-12-12
D166: =IF(D84<DATE(2099,12,31),D84+1500,D84) -> 1904-02-08 | E166: 1904-02-08 | F166: 1904-02-08 | H166: =IF(H84<DATE(2099,12,31),H84+1500,H84) -> 1904-02-08 | I166: 1904-02-08 | J166: 1904-02-08
D167: =IF(D85<DATE(2099,12,31),D85+1500,D85) -> 1904-03-31 | E167: 1904-03-28 | F167: 1904-03-16 | H167: =IF(H85<DATE(2099,12,31),H85+1500,H85) -> 1904-04-03 | I167: 1904-04-03 | J167: 1904-03-23
D168: =IF(D86<DATE(2099,12,31),D86+1500,D86) -> 1904-04-22 | E168: 1904-03-29 | F168: 1904-04-07 | H168: =IF(H86<DATE(2099,12,31),H86+1500,H86) -> 1904-04-04 | I168: 1904-03-16 | J168: 1904-04-07
D169: =IF(D87<DATE(2099,12,31),D87+1500,D87) -> 1904-02-08 | E169: 1904-02-08 | F169: 1904-02-08 | H169: =IF(H87<DATE(2099,12,31),H87+1500,H87) -> 1904-02-08 | I169: 1904-02-08 | J169: 1904-02-08
D170: =IF(D88<DATE(2099,12,31),D88+1500,D88) -> 1904-02-08 | E170: 1904-02-08 | F170: 1904-02-08 | H170: =IF(H88<DATE(2099,12,31),H88+1500,H88) -> 1904-02-08 | I170: 1904-02-08 | J170: 1904-02-08
D171: =IF(D89<DATE(2099,12,31),D89+1500,D89) -> 1904-02-08 | E171: 1904-02-08 | F171: 1904-02-08 | H171: =IF(H89<DATE(2099,12,31),H89+1500,H89) -> 1904-02-08 | I171: 1904-02-08 | J171: 1904-02-08
D172: =IF(D90<DATE(2099,12,31),D90+1500,D90) -> 1904-02-08 | E172: 1904-02-08 | F172: 1904-02-08 | H172: =IF(H90<DATE(2099,12,31),H90+1500,H90) -> 1904-02-08 | I172: 1904-02-08 | J172: 1904-02-08
D173: =IF(D91<DATE(2099,12,31),D91+1500,D91) -> 1904-02-08 | E173: 1904-02-08 | F173: 1904-02-08 | H173: =IF(H91<DATE(2099,12,31),H91+1500,H91) -> 1904-02-08 | I173: 1904-02-08 | J173: 1904-02-08
D174: =IF(D92<DATE(2099,12,31),D92+1500,D92) -> Coupled female entry | E174: Coupled male entry | F174: 1904-02-08 | H174: =IF(H92<DATE(2099,12,31),H92+1500,H92) -> 1904-02-08 | I174: 1904-02-08 | J174: 1904-02-08
D175: =IF(D93<DATE(2099,12,31),D93+1500,D93) -> 1904-02-08 | E175: 1904-02-08 | F175: 1904-02-08 | H175: =IF(H93<DATE(2099,12,31),H93+1500,H93) -> 1904-04-08 | I175: 1904-02-08 | J175: 1904-02-08
D176: =IF(D94<DATE(2099,12,31),D94+1500,D94) -> 1904-02-09 | E176: 1904-02-08 | F176: 1904-02-08 | H176: =IF(H94<DATE(2099,12,31),H94+1500,H94) -> 1904-04-13 | I176: 1904-02-08 | J176: 1904-02-08
D177: =IF(D95<DATE(2099,12,31),D95+1500,D95) -> 1904-02-09 | E177: 1904-02-08 | F177: 1904-02-08 | H177: =IF(H95<DATE(2099,12,31),H95+1500,H95) -> 1904-04-18 | I177: 1904-02-08 | J177: 1904-02-08
D178: =IF(D96<DATE(2099,12,31),D96+1500,D96) -> 1904-02-08 | E178: 1904-02-08 | F178: 1904-02-08 | H178: =IF(H96<DATE(2099,12,31),H96+1500,H96) -> 1904-04-23 | I178: 1904-02-08 | J178: 1904-02-08
D179: =IF(D97<DATE(2099,12,31),D97+1500,D97) -> 1904-02-13 | E179: 1904-02-08 | F179: 1904-02-08 | H179: =IF(H97<DATE(2099,12,31),H97+1500,H97) -> 1904-04-28 | I179: 1904-02-08 | J179: 1904-02-08

Sheet Sheet2

Sheet Sheet3
